bitfinex/quotes_BTCUSD_20241203
["timestamp","ask_amount","ask_price","bid_price","bid_amount"]
[1733185693123,0.005,95878.0,95865.0,0.208626]
[1733185693336,0.00190666,95879.0,95867.0,0.208622]
[1733185693544,0.005,95872.0,95868.0,0.25830941]
[1733185693775,0.004,95872.0,95868.0,0.25830941]
[1733185693974,0.004,95872.0,95868.0,0.46692941]
[1733185694180,0.01,95872.0,95871.0,0.001]
[1733185694385,0.01,95872.0,95871.0,0.1260459]
[1733185694591,0.01,95872.0,95871.0,0.20553083]
[1733185694796,0.01,95872.0,95871.0,0.1260459]
[1733185695021,0.006,95872.0,95871.0,0.1260459]
[1733185695863,0.011,95872.0,95871.0,0.1260459]
[1733185696073,0.00190666,95879.0,95872.0,0.417222]
[1733185696297,0.005,95872.0,95871.0,0.1242]
[1733185696500,0.011,95872.0,95871.0,0.1252]
[1733185696707,0.00190666,95879.0,95871.0,0.1242]
[1733185696911,0.00190666,95879.0,95872.0,0.208611]
[1733185697118,0.002,95872.0,95871.0,0.332813]
[1733185697752,0.002,95872.0,95871.0,0.333813]
[1733185698180,0.00190666,95879.0,95871.0,0.333813]
[1733185698387,0.00190666,95879.0,95878.0,0.208598]
[1733185698592,0.00190666,95879.0,95878.0,0.28644383]
[1733185698796,0.00190666,95879.0,95878.0,0.284598]
[1733185699011,0.00190666,95879.0,95878.0,0.331498]
[1733185699421,0.00390666,95879.0,95878.0,0.331498]
[1733185699830,0.00490666,95879.0,95878.0,0.331498]
[1733185700261,0.00190666,95879.0,95878.0,0.331498]
[1733185700467,0.00590666,95879.0,95878.0,0.331498]
[1733185700879,0.00890666,95879.0,95878.0,0.331498]
[1733185701282,0.00890666,95879.0,95878.0,0.1229]
[1733185701515,0.00890666,95879.0,95878.0,0.12474579]
[1733185701720,0.00890666,95879.0,95878.0,0.1229]
[1733185702370,0.00690666,95879.0,95878.0,0.1229]
[1733185702589,0.00390666,95879.0,95878.0,0.1229]
[1733185702803,0.00690666,95879.0,95878.0,0.1229]
[1733185703225,0.00490666,95879.0,95878.0,0.1229]
[1733185703435,0.21750366,95879.0,95870.0,0.0761]
[1733185703652,0.21750366,95879.0,95871.0,0.00184593]
[1733185704087,0.00890666,95879.0,95871.0,0.00184593]
[1733185704308,0.208598,95878.0,95871.0,0.00184593]
[1733185704516,0.00890666,95879.0,95871.0,0.00184593]
[1733185705384,0.00190666,95879.0,95871.0,0.00184593]
[1733185705801,0.00390666,95879.0,95871.0,0.02290103]
[1733185706227,0.00190666,95879.0,95871.0,0.02290103]
[1733185706455,0.00190666,95879.0,95874.0,0.208605]
[1733185706456,0.00390666,95879.0,95874.0,0.208605]
[1733185706669,0.00390666,95879.0,95875.0,0.00184592]
[1733185706888,0.00390666,95879.0,95876.0,0.00184592]
[1733185707103,0.00390666,95879.0,95877.0,0.2086]
[1733185707313,0.00390666,95879.0,95877.0,0.00184592]
[1733185707746,0.00390666,95879.0,95877.0,0.21044392]
[1733185707960,0.00390666,95879.0,95877.0,0.25408529]
[1733185708384,0.00190666,95879.0,95877.0,0.04548729]
[1733185708590,0.00190666,95879.0,95877.0,0.00184592]
[1733185708804,0.00490666,95879.0,95876.0,0.208602]
[1733185709052,0.00690666,95879.0,95877.0,0.00184592]
[1733185709286,0.00190666,95879.0,95878.0,0.208598]
[1733185709496,0.00490666,95879.0,95878.0,0.208598]
[1733185709701,0.00790666,95879.0,95878.0,0.208598]
[1733185709947,0.00790666,95879.0,95878.0,0.21044392]
[1733185710177,0.00490666,95879.0,95878.0,0.21044392]
[1733185710398,0.00190666,95879.0,95878.0,0.00184592]
[1733185710825,0.00490666,95879.0,95878.0,0.00184592]
[1733185711934,0.00490666,95879.0,95875.0,0.21044791]
[1733185712150,0.00890666,95879.0,95875.0,0.21044791]
[1733185713116,0.00190666,95879.0,95875.0,0.21044791]
[1733185713337,0.00690666,95879.0,95875.0,0.21044791]
[1733185713550,0.00690666,95879.0,95875.0,0.41905191]
[1733185713761,0.00690666,95879.0,95875.0,0.21044791]
[1733185715466,0.00690666,95879.0,95875.0,0.41905091]
[1733185716172,0.00690666,95879.0,95877.0,0.2086]
[1733185716383,0.00690666,95879.0,95878.0,0.23009107]
[1733185716640,0.00690666,95879.0,95878.0,0.22824521]
[1733185716854,0.00390666,95879.0,95878.0,0.6337304]
[1733185717765,0.0017298,95914.0,95890.0,0.1228]
[1733185718053,0.00190563,95914.0,95905.0,0.208538]
[1733185718485,0.00190563,95914.0,95907.0,0.208535]
[1733185718700,0.00190563,95914.0,95908.0,0.07754532]
[1733185718928,0.00190563,95914.0,95908.0,0.0757]
[1733185719172,0.00190563,95914.0,95909.0,0.24504039]
[1733185719395,0.00190563,95914.0,95912.0,0.41377407]
[1733185719600,0.00690563,95914.0,95912.0,0.41377407]
[1733185719783,0.00690563,95914.0,95912.0,0.41361285]
[1733185720257,0.00690563,95914.0,95911.0,0.41361285]
[1733185720677,0.00690563,95914.0,95910.0,0.41361285]
[1733185721116,0.00190563,95914.0,95910.0,0.41361285]
[1733185721324,0.00790563,95914.0,95911.0,0.09063859]
[1733185721583,0.00190563,95914.0,95912.0,0.00962189]
[1733185721799,0.00190563,95914.0,95913.0,0.21629856]
[1733185722013,0.00190563,95914.0,95913.0,0.00777656]
[1733185722014,0.01490563,95914.0,95913.0,0.00777656]
[1733185722226,0.00790563,95914.0,95913.0,0.08444712]
[1733185722898,0.00190563,95914.0,95913.0,0.08444712]
[1733185723134,0.01290563,95914.0,95913.0,0.08444712]
[1733185723568,0.01290563,95914.0,95913.0,0.0096217]
[1733185724492,0.00690563,95914.0,95913.0,0.0096217]
[1733185724593,0.01390563,95914.0,95913.0,0.0106217]
[1733185724800,0.00890563,95914.0,95913.0,0.0106217]
[1733185725043,0.00190563,95914.0,95913.0,0.0096217]
[1733185725267,0.01290563,95914.0,95913.0,0.0106217]
[1733185725709,0.00690563,95914.0,95913.0,0.0096217]
[1733185726074,0.01090563,95914.0,95913.0,0.0096217]
[1733185726682,0.01090563,95914.0,95913.0,0.00184514]
[1733185726883,0.01090563,95914.0,95913.0,0.0096217]
[1733185727870,0.01090563,95914.0,95911.0,0.00184523]
[1733185728735,0.00690563,95914.0,95911.0,0.00184523]
[1733185728954,0.00190563,95914.0,95911.0,0.00184523]
[1733185729218,0.00590563,95914.0,95911.0,0.00184523]
[1733185729492,0.00990563,95914.0,95911.0,0.00184523]
[1733185729988,0.00990563,95914.0,95911.0,0.21036923]
[1733185730243,0.00990563,95914.0,95912.0,0.00777656]
[1733185730527,0.00990563,95914.0,95911.0,0.21036923]
[1733185730528,0.00990563,95914.0,95913.0,0.00184519]
[1733185730772,0.00990563,95914.0,95910.0,0.0475]
[1733185731168,0.00190563,95914.0,95910.0,0.0475]
[1733185731604,0.00990563,95914.0,95910.0,0.0475]
[1733185731815,0.00590563,95914.0,95911.0,0.00184521]
[1733185732080,0.00490563,95914.0,95911.0,0.00184521]
[1733185732509,0.00890563,95914.0,95912.0,0.22338644]
[1733185732747,0.00890563,95914.0,95913.0,0.00184519]
[1733185733178,0.00890563,95914.0,95913.0,0.02344053]
[1733185733841,0.00190563,95914.0,95913.0,0.13404767]
[1733185734051,0.00590563,95914.0,95913.0,0.13404767]
[1733185734263,0.00990563,95914.0,95913.0,0.13404767]
[1733185734474,0.00590563,95914.0,95913.0,0.13404767]
[1733185734683,0.00190563,95914.0,95913.0,0.12628564]
[1733185734896,0.00690563,95914.0,95913.0,0.13404548]
[1733185735310,0.00390563,95914.0,95913.0,0.13404548]
[1733185735731,0.00690563,95914.0,95913.0,0.13404548]
[1733185735938,0.00790563,95914.0,95913.0,0.13404548]
[1733185742197,0.00790563,95914.0,95913.0,0.13405336]
[1733185742834,0.00790563,95914.0,95913.0,0.20545217]
[1733185744101,0.00490563,95914.0,95913.0,0.20545217]
[1733185744325,0.00690563,95914.0,95913.0,0.13405336]
[1733185744543,0.00390563,95914.0,95913.0,0.13405336]
[1733185744972,0.00190563,95914.0,95913.0,0.13405336]
[1733185745396,0.00390563,95914.0,95913.0,0.02936306]
[1733185745850,0.00390563,95914.0,95913.0,0.00776772]
[1733185746749,0.00390563,95914.0,95883.0,0.63311285]
[1733185746750,0.208559,95896.0,95889.0,0.00776772]
[1733185746970,0.208557,95897.0,95889.0,0.00184556]
[1733185747233,0.0482,95913.0,95890.0,0.02156867]
[1733185747234,0.208565,95894.0,95890.0,0.02156867]
[1733185747440,0.41713,95894.0,95890.0,0.02156867]
[1733185747654,0.208573,95890.0,95879.0,0.0008647]
[1733185747865,0.208573,95890.0,95880.0,0.31143921]
[1733185748070,0.208565,95894.0,95880.0,0.33303158]
[1733185748284,0.208573,95890.0,95880.0,0.33303158]
[1733185748520,0.208565,95894.0,95882.0,0.208589]
[1733185748728,0.002,95894.0,95884.0,0.208585]
[1733185748931,0.002,95894.0,95885.0,0.00184571]
[1733185749136,0.002,95894.0,95886.0,0.00184571]
[1733185749343,0.005,95894.0,95886.0,0.00184571]
[1733185749560,0.005,95894.0,95887.0,0.02159008]
[1733185749791,0.009,95894.0,95888.0,0.00184571]
[1733185750001,0.007,95894.0,95888.0,0.00184571]
[1733185750228,0.003,95894.0,95889.0,0.02158942]
[1733185750646,0.208559,95896.0,95883.0,0.00184571]
[1733185750864,0.417119,95896.0,95883.0,0.00184571]
[1733185751076,0.005,95894.0,95883.0,0.00184571]
[1733185751293,0.208565,95893.0,95879.0,0.0008647]
[1733185751498,0.20859,95882.0,95879.0,0.0008647]
[1733185751930,0.41718,95882.0,95879.0,0.0008647]
[1733185752807,0.41818,95882.0,95879.0,0.0008647]
[1733185754206,0.20959,95882.0,95879.0,0.0008647]
[1733185754403,0.20859,95882.0,95879.0,0.0008647]
[1733185754613,0.41718,95882.0,95879.0,0.0008647]
[1733185754814,0.42518,95882.0,95879.0,0.0018647]
[1733185755275,0.42318,95882.0,95879.0,0.0018647]
[1733185755647,0.42818,95882.0,95879.0,0.0028647]
[1733185756245,0.21959,95882.0,95879.0,0.0028647]
[1733185756693,0.42818,95882.0,95879.0,0.0028647]
[1733185758792,0.470998,95882.0,95879.0,0.0028647]
[1733185761025,0.42818,95882.0,95879.0,0.0028647]
[1733185762293,0.21959,95882.0,95879.0,0.0028647]
[1733185763189,0.42818,95882.0,95879.0,0.0028647]
[1733185764447,0.011,95882.0,95879.0,0.0028647]
[1733185764659,0.011,95882.0,95879.0,0.00471056]
[1733185764869,0.011,95882.0,95880.0,0.02183848]
[1733185765943,0.006,95882.0,95880.0,0.03669745]
[1733185766170,0.208564,95894.0,95881.0,0.208591]
[1733185766391,0.005,95882.0,95881.0,0.208591]
[1733185766608,0.012,95882.0,95881.0,0.208591]
[1733185767213,0.007,95882.0,95881.0,0.208591]
[1733185767444,0.007,95882.0,95881.0,0.211591]
[1733185767839,0.208564,95894.0,95884.0,0.208583]
[1733185768250,0.209564,95894.0,95884.0,0.208583]
[1733185768488,0.208571,95891.0,95881.0,0.211591]
[1733185768725,0.208565,95893.0,95881.0,0.211591]
[1733185768907,0.004,95882.0,95881.0,0.208591]
[1733185769151,0.008,95882.0,95881.0,0.208591]
[1733185769570,0.208557,95897.0,95879.0,0.0008647]
[1733185769774,0.2,95925.0,95880.0,0.00184586]
[1733185769775,0.208576,95889.0,95880.0,0.00184586]
[1733185770012,0.208576,95889.0,95879.0,0.00271057]
[1733185770629,0.208567,95892.0,95879.0,0.00271057]
[1733185770836,0.208581,95886.0,95880.0,0.00184586]
[1733185771048,0.208581,95886.0,95879.0,0.0078647]
[1733185771237,0.208579,95887.0,95879.0,0.0078647]
[1733185771862,0.004,95882.0,95879.0,0.0078647]
[1733185772305,0.208566,95893.0,95880.0,0.208594]
[1733185772515,0.003,95887.0,95882.0,0.208589]
[1733185772969,0.003,95887.0,95879.0,0.0008647]
[1733185773226,0.003,95882.0,95880.0,0.208594]
[1733185773482,0.003,95882.0,95879.0,0.00271057]
[1733185774172,0.003,95882.0,95880.0,0.208594]
[1733185774398,0.003,95882.0,95880.0,0.21043986]
[1733185774619,0.007,95882.0,95880.0,0.21043986]
[1733185775363,0.004,95882.0,95880.0,0.21043986]
[1733185775824,0.003,95887.0,95880.0,0.00184586]
[1733185776080,0.208575,95889.0,95880.0,0.00184586]
[1733185776300,0.006,95882.0,95879.0,0.00271057]
[1733185776712,0.003,95882.0,95880.0,0.208594]
[1733185776937,0.003,95882.0,95880.0,0.34221025]
[1733185776938,0.007,95882.0,95880.0,0.34221025]
[1733185777138,0.0057294,95882.0,95880.0,0.34221025]
[1733185777780,0.0017294,95882.0,95880.0,0.34221025]
[1733185778655,0.0017294,95882.0,95880.0,0.13361625]
[1733185778890,0.0047294,95882.0,95880.0,0.13361625]
[1733185779095,0.0077294,95882.0,95881.0,0.208591]
[1733185779305,0.0077294,95882.0,95881.0,0.21043677]
[1733185779516,0.0087294,95882.0,95881.0,0.21043677]
[1733185779720,0.0017294,95882.0,95881.0,0.00184577]
[1733185779938,0.0057294,95882.0,95881.0,0.00184577]
[1733185780165,0.0087294,95882.0,95881.0,0.00184577]
[1733185780366,0.0087294,95882.0,95879.0,0.0008647]
[1733185780367,0.0459,95881.0,95879.0,0.0008647]
[1733185780583,0.18144521,95880.0,95879.0,0.0008647]
[1733185780792,0.88144521,95880.0,95879.0,0.0008647]
[1733185782304,0.88244521,95880.0,95879.0,0.0098647]
[1733185782545,0.88244521,95880.0,95879.0,0.0008647]
[1733185782763,0.88244521,95880.0,95879.0,0.0098647]
[1733185782974,0.88344521,95880.0,95879.0,0.0098647]
[1733185783400,0.88444521,95880.0,95879.0,0.0168647]
[1733185792064,0.80584521,95880.0,95879.0,0.0168647]
[1733185795740,0.80584521,95880.0,95879.0,0.0134589]
[1733185801076,0.80584521,95880.0,95879.0,0.0143236]
[1733185801280,0.80757461,95880.0,95879.0,0.0143236]
[1733185805391,1.10947461,95880.0,95879.0,0.0143236]
[1733185806048,0.6937,95872.0,95834.0,0.014324]
[1733185806260,0.208657,95851.0,95834.0,0.014324]
[1733185806471,0.31150221,95851.0,95850.0,0.00104086]
[1733185807380,1.01150221,95851.0,95850.0,0.00104086]
[1733185807799,0.7,95851.0,95850.0,0.00104086]
[1733185808012,0.701,95851.0,95850.0,0.00704086]
[1733185809106,0.702,95851.0,95850.0,0.00804086]
[1733185809813,0.002,95851.0,95850.0,0.00804086]
[1733185810695,0.702,95851.0,95850.0,0.00804086]
[1733185813040,0.702,95851.0,95850.0,0.13374086]
[1733185813877,0.701,95851.0,95850.0,0.12774086]
[1733185814090,0.709,95851.0,95850.0,0.12774086]
[1733185814516,0.709,95851.0,95850.0,0.08094086]
[1733185814729,0.709,95851.0,95850.0,0.07994086]
[1733185814730,0.7,95851.0,95850.0,0.07994086]
[1733185815161,0.715,95851.0,95850.0,0.08094086]
[1733185815369,0.715,95851.0,95850.0,0.07994086]
[1733185815370,0.706,95851.0,95850.0,0.07994086]
[1733185815579,0.706,95851.0,95850.0,0.08094086]
[1733185815785,0.714,95851.0,95850.0,0.12674086]
[1733185816012,0.714,95851.0,95850.0,0.38143252]
[1733185816227,0.714,95851.0,95850.0,0.37958607]
[1733185817168,0.714,95851.0,95850.0,0.57958607]
[1733185817373,0.0017294,95880.0,95877.0,0.0782]
[1733185817783,0.0017294,95880.0,95878.0,0.208598]
[1733185817988,0.0017294,95880.0,95877.0,0.0782]
[1733185818199,0.0017294,95880.0,95878.0,0.02470864]
[1733185818628,0.0107294,95880.0,95878.0,0.02470864]
[1733185819452,0.0017294,95880.0,95879.0,0.208596]
[1733185819671,0.0027294,95880.0,95879.0,0.23326312]
[1733185819902,0.0117294,95880.0,95879.0,0.23326312]
[1733185820117,0.0107294,95880.0,95879.0,0.23326312]
[1733185820367,0.0107294,95880.0,95879.0,0.33610833]
[1733185820583,0.0177294,95880.0,95879.0,0.36901732]
[1733185820788,0.01778798,95880.0,95879.0,0.36901732]
[1733185821007,0.00178798,95880.0,95879.0,0.36901732]
[1733185821451,0.00178798,95880.0,95879.0,0.33710833]
[1733185821452,0.01378798,95880.0,95879.0,0.33710833]
[1733185821866,0.00578798,95880.0,95879.0,0.33610833]
[1733185822069,0.00778798,95880.0,95879.0,0.33610833]
[1733185822296,0.00778798,95880.0,95879.0,0.46540833]
[1733185822503,0.00378798,95880.0,95879.0,0.46540833]
[1733185822712,0.00478798,95880.0,95879.0,0.46540833]
[1733185822928,0.00778798,95880.0,95879.0,0.46540833]
[1733185823142,0.00778798,95880.0,95879.0,0.36256312]
[1733185824288,0.00778798,95880.0,95879.0,0.15396712]
[1733185824533,0.00778798,95880.0,95879.0,0.15581298]
[1733185826013,0.00778798,95880.0,95879.0,0.15667768]
[1733185826240,0.00778798,95880.0,95879.0,0.2010797]
[1733185827690,0.00778798,95880.0,95879.0,0.15667768]
[1733185828193,0.00778798,95880.0,95879.0,0.25952289]
[1733185828466,0.00778798,95880.0,95879.0,0.25767703]
[1733185829623,0.00478798,95880.0,95879.0,0.25767703]
[1733185829838,0.00678798,95880.0,95879.0,0.25767703]
[1733185830535,0.00478798,95880.0,95879.0,0.15483182]
[1733185830767,0.00378798,95880.0,95879.0,0.15667759]
[1733185831242,0.00178798,95880.0,95879.0,0.15667759]
[1733185831496,0.00478798,95880.0,95879.0,0.15667759]
[1733185831757,0.00578798,95880.0,95879.0,0.15667759]
[1733185832497,0.00478798,95880.0,95879.0,0.15667759]
[1733185832751,0.00478798,95880.0,95879.0,0.02553182]
[1733185832953,0.00778798,95880.0,95879.0,0.02553182]
[1733185833196,0.00778798,95880.0,95879.0,0.23412782]
[1733185833662,0.00478798,95880.0,95879.0,0.23412782]
[1733185834177,0.00678798,95880.0,95879.0,0.23412782]
[1733185834409,0.01178798,95880.0,95879.0,0.23412782]
[1733185835331,0.01178798,95880.0,95879.0,0.33697303]
[1733185835567,0.01178798,95880.0,95879.0,0.66207303]
[1733185835833,0.01178798,95880.0,95879.0,0.81207303]
[1733185836324,0.00678798,95880.0,95879.0,0.81207303]
[1733185836546,0.00978798,95880.0,95879.0,0.81207303]
[1733185836748,0.00978798,95880.0,95879.0,0.91490449]
[1733185836967,0.00678798,95880.0,95879.0,0.91490449]
[1733185837212,0.00178798,95880.0,95879.0,0.91490449]
[1733185837468,0.00278798,95880.0,95879.0,0.91590449]
[1733185837731,0.00178798,95880.0,95879.0,0.91590449]
[1733185837963,0.00178798,95880.0,95879.0,0.92190449]
[1733185838829,0.00178798,95880.0,95879.0,1.33455367]
[1733185839131,0.00178798,95880.0,95879.0,0.92190449]
[1733185839363,0.00178798,95880.0,95879.0,1.14490449]
[1733185840445,0.00178798,95880.0,95879.0,1.16244455]
[1733185841498,0.00178798,95880.0,95879.0,1.13944455]
[1733185841715,0.00178798,95880.0,95879.0,0.83661309]
[1733185842859,0.00178798,95880.0,95879.0,0.83561309]
[1733185843279,0.00178798,95880.0,95879.0,0.82961309]
[1733185843678,0.00178798,95880.0,95879.0,0.83261309]
[1733185844109,0.00178798,95880.0,95879.0,0.63261309]
[1733185845148,0.00178798,95880.0,95879.0,0.7063471]
[1733185845396,0.00178798,95880.0,95879.0,0.63261309]
[1733185848249,0.00178798,95880.0,95879.0,0.41627303]
[1733185852504,0.00178798,95880.0,95879.0,0.44869756]
[1733185852748,0.00178798,95880.0,95879.0,0.79869756]
[1733185852986,0.00178798,95880.0,95879.0,0.84829756]
[1733185853197,0.00178798,95880.0,95879.0,0.95112902]
[1733185855358,0.00178798,95880.0,95879.0,0.64829756]
[1733185855820,0.00178798,95880.0,95879.0,0.59869756]
[1733185856027,0.00178798,95880.0,95879.0,0.56627303]
[1733185856236,0.00178798,95880.0,95879.0,0.97895967]
[1733185856444,0.00178798,95880.0,95879.0,0.44121846]
[1733185856653,0.21038198,95880.0,95879.0,0.02853182]
[1733185857105,0.21038198,95880.0,95879.0,0.0038647]
[1733185857545,0.21038198,95880.0,95879.0,0.0008647]
[1733185857953,0.21738198,95880.0,95879.0,0.0018647]
[1733185858198,0.21038198,95880.0,95879.0,0.0008647]
[1733185858610,0.21138198,95880.0,95879.0,0.0088647]
[1733185859037,0.21138198,95880.0,95879.0,0.0108647]
[1733185863629,0.31422719,95880.0,95879.0,0.0108647]
[1733185865775,0.00278798,95880.0,95879.0,0.0108647]
[1733185870566,0.00278798,95880.0,95879.0,0.2194607]
[1733185870778,0.00278798,95880.0,95879.0,0.0108647]
[1733185871057,0.00278798,95880.0,95879.0,0.03005207]
[1733185871681,0.00278798,95880.0,95879.0,0.03644786]
[1733185872994,0.00278798,95880.0,95879.0,0.03003085]
[1733185873656,0.00278798,95880.0,95879.0,0.0108647]
[1733185874093,0.00278798,95880.0,95879.0,0.03003085]
[1733185874528,0.10563319,95880.0,95879.0,0.03003085]
[1733185874769,0.11559319,95880.0,95879.0,0.03003085]
[1733185875047,0.11559319,95880.0,95879.0,0.0108647]
[1733185876045,0.13681677,95880.0,95879.0,0.0108647]
[1733185877575,0.11559319,95880.0,95879.0,0.0108647]
[1733185880841,0.01274798,95880.0,95879.0,0.0108647]
[1733185882091,0.22134198,95880.0,95879.0,0.03322802]
[1733185882306,0.22134198,95880.0,95879.0,0.0108647]
[1733185882743,0.01274798,95880.0,95879.0,0.0108647]
[1733185883161,0.01274798,95880.0,95879.0,0.03322802]
[1733185883366,0.01274798,95880.0,95879.0,0.0108647]
[1733185883781,0.01274798,95880.0,95879.0,0.03322802]
[1733185883984,0.01274798,95880.0,95879.0,0.0108647]
[1733185884189,0.01274798,95880.0,95879.0,0.03321879]
[1733185884391,0.01274798,95880.0,95879.0,0.0108647]
[1733185884592,0.01274798,95880.0,95879.0,0.03321879]
[1733185884700,0.01274798,95880.0,95879.0,0.0108647]
[1733185884907,0.01274798,95880.0,95879.0,0.03321879]
[1733185885134,0.01274798,95880.0,95879.0,0.0108647]
[1733185885359,0.01274798,95880.0,95879.0,0.03321879]
[1733185885560,0.01274798,95880.0,95879.0,0.0108647]
[1733185885773,0.01274798,95880.0,95879.0,0.03321879]
[1733185885938,0.01274798,95880.0,95879.0,0.0108647]
[1733185886145,0.01274798,95880.0,95879.0,0.03321879]
[1733185886404,0.01274798,95880.0,95879.0,0.0108647]
[1733185886561,0.01274798,95880.0,95879.0,0.03321879]
[1733185886767,0.01274798,95880.0,95879.0,0.0108647]
[1733185887370,0.01274798,95880.0,95879.0,0.03321699]
[1733185887568,0.01274798,95880.0,95879.0,0.0108647]
[1733185887769,0.01274798,95880.0,95879.0,0.03321967]
[1733185887967,0.01274798,95880.0,95879.0,0.24308995]
[1733185888225,0.01274798,95880.0,95879.0,0.24181567]
[1733185891515,0.01274798,95880.0,95879.0,0.32431567]
[1733185891918,0.01274798,95880.0,95879.0,0.47576088]
[1733185892450,0.01174798,95880.0,95879.0,0.46776088]
[1733185892651,0.01174798,95880.0,95879.0,0.46576088]
[1733185893032,0.01974798,95880.0,95879.0,0.46576088]
[1733185893444,0.02074798,95880.0,95879.0,0.46576088]
[1733185893654,0.01674798,95880.0,95879.0,0.46576088]
[1733185893870,0.01874798,95880.0,95879.0,0.46576088]
[1733185894690,0.01874798,95880.0,95879.0,0.56859234]
[1733185895526,0.01674798,95880.0,95879.0,0.56859234]
[1733185895734,0.01174798,95880.0,95879.0,0.56859234]
[1733185895956,0.01574798,95880.0,95879.0,0.91859234]
[1733185896162,0.01574798,95880.0,95879.0,0.95097877]
[1733185896586,0.01174798,95880.0,95879.0,0.95097877]
[1733185897040,0.01374798,95880.0,95879.0,0.91859234]
[1733185897513,0.01174798,95880.0,95879.0,0.91859234]
[1733185897976,0.01174798,95880.0,95879.0,1.71859234]
[1733185899316,0.01174798,95880.0,95879.0,1.72359234]
[1733185899535,0.01174798,95880.0,95879.0,1.71959234]
[1733185899728,0.01174798,95880.0,95879.0,1.72459234]
[1733185902640,0.01174798,95880.0,95879.0,1.92459234]
[1733185902857,0.01174798,95880.0,95879.0,1.95692789]
[1733185903057,0.01174798,95880.0,95879.0,1.97992789]
[1733185903295,0.0017294,95882.0,95881.0,0.4]
[1733185903498,0.0017294,95882.0,95881.0,1.25418076]
[1733185903703,0.0017294,95882.0,95881.0,1.2764228]
[1733185905423,0.0017294,95882.0,95881.0,1.30149123]
[1733185906491,0.0017294,95882.0,95881.0,1.30049123]
[1733185906704,0.0017294,95882.0,95881.0,1.40332269]
[1733185906904,0.0017294,95882.0,95881.0,1.41132269]
[1733185908541,0.0017294,95882.0,95881.0,1.37898714]
[1733185910425,0.0017294,95882.0,95881.0,1.41126367]
[1733185915471,0.0017294,95882.0,95881.0,1.72550773]
[1733185916511,0.0017294,95882.0,95881.0,1.41126367]
[1733185921293,0.0017294,95882.0,95881.0,0.93183221]
[1733185921564,0.0017294,95882.0,95881.0,0.13608725]
[1733185921829,0.0017294,95882.0,95881.0,0.34467825]
[1733185922057,0.0017294,95882.0,95881.0,0.34167825]
[1733185922540,0.0037294,95882.0,95881.0,0.34167825]
[1733185922806,0.0037294,95882.0,95881.0,0.33367825]
[1733185923035,0.0027294,95882.0,95881.0,0.84846591]
[1733185923279,0.0067294,95882.0,95881.0,0.43650971]
[1733185923512,0.0067294,95882.0,95881.0,0.84846591]
[1733185923976,0.0057294,95882.0,95881.0,0.84846591]
[1733185924457,0.0057294,95882.0,95881.0,0.33567825]
[1733185924913,0.0017294,95882.0,95881.0,0.33567825]
[1733185925168,0.0027294,95882.0,95881.0,0.33567825]
[1733185925892,0.0027294,95882.0,95881.0,0.74817697]
[1733185926357,0.0027294,95882.0,95881.0,1.13567825]
[1733185930201,0.0027294,95882.0,95881.0,1.23850971]
[1733185930419,0.0027294,95882.0,95881.0,1.51800971]
[1733185930599,0.0027294,95882.0,95881.0,1.23850971]
[1733185930805,0.0027294,95882.0,95881.0,1.27091456]
[1733185932522,0.0027294,95882.0,95881.0,1.47091456]
[1733185933571,0.0027294,95882.0,95881.0,1.47869132]
[1733185933793,0.0027294,95882.0,95881.0,1.27869132]
[1733185933994,0.0027294,95882.0,95881.0,1.17585986]
[1733185934909,0.0027294,95882.0,95881.0,1.37585986]
[1733185936650,0.0027294,95882.0,95881.0,1.72585986]
[1733185936879,0.0027294,95882.0,95881.0,1.87835986]
[1733185937078,0.0027294,95882.0,95881.0,1.98119132]
[1733185937993,0.0017294,95887.0,95886.0,0.408581]
[1733185938220,0.0017294,95887.0,95886.0,0.85010782]
[1733185938432,0.0017294,95887.0,95886.0,1.06867008]
[1733185939315,0.0027294,95887.0,95886.0,1.06867008]
[1733185939528,0.0027294,95887.0,95886.0,1.17150154]
[1733185940195,0.0017294,95887.0,95886.0,1.17150154]
[1733185940393,0.0017294,95887.0,95886.0,1.17650154]
[1733185940615,0.0037294,95887.0,95886.0,1.17150154]
[1733185941093,0.0017294,95887.0,95886.0,1.17850154]
[1733185941304,0.0017294,95887.0,95886.0,1.48950154]
[1733185941515,0.0017294,95887.0,95886.0,1.49150154]
[1733185941933,0.0017294,95887.0,95886.0,1.48950154]
[1733185942184,0.0017294,95887.0,95886.0,1.49250154]
[1733185942408,0.0017294,95887.0,95886.0,1.48550154]
[1733185942613,0.0017294,95887.0,95886.0,1.49350154]
[1733185942824,0.0017294,95887.0,95886.0,1.48550154]
[1733185943662,0.0017294,95887.0,95886.0,1.48250154]
[1733185943870,0.0017294,95887.0,95886.0,1.49450154]
[1733185944912,0.0017294,95887.0,95886.0,1.48864499]
[1733185945779,0.0017294,95887.0,95886.0,1.28864499]
[1733185946002,0.0017294,95887.0,95886.0,0.86031353]
[1733185946212,0.0017294,95887.0,95886.0,0.39931353]
[1733185946412,0.0017294,95887.0,95886.0,0.36690868]
[1733185946821,0.0017294,95887.0,95886.0,0.34976523]
[1733185947026,0.0017294,95887.0,95886.0,0.34676523]
[1733185947229,0.0047294,95887.0,95886.0,0.33776523]
[1733185947631,0.0057294,95887.0,95886.0,0.48776523]
[1733185947838,0.0027294,95887.0,95886.0,0.48776523]
[1733185948093,0.0027294,95887.0,95886.0,0.33776523]
[1733185948094,0.0047294,95887.0,95886.0,0.33776523]
[1733185948530,0.0047294,95887.0,95886.0,0.44059669]
[1733185949419,0.0047294,95887.0,95886.0,0.85388285]
[1733185949632,0.0047294,95887.0,95886.0,0.33776523]
[1733185949886,0.0808294,95887.0,95886.0,0.02633902]
[1733185953588,0.0808294,95887.0,95886.0,0.30612032]
[1733185954822,0.1262294,95887.0,95886.0,0.01856226]
[1733185955021,0.1262294,95887.0,95882.0,0.00777345]
[1733185955291,0.417162,95886.0,95882.0,0.00777345]
[1733185955447,0.417162,95886.0,95881.0,0.8008646]
[1733185955448,0.417162,95886.0,95883.0,0.01848834]
[1733185955652,0.1242294,95887.0,95881.0,0.8008646]
[1733185955854,0.208589,95882.0,95881.0,0.8008646]
[1733185957238,0.213589,95882.0,95881.0,0.8018646]
[1733185957605,0.213589,95882.0,95881.0,0.8008646]
[1733185957811,0.218589,95882.0,95881.0,0.8018646]
[1733185958020,0.300589,95882.0,95881.0,0.8018646]
[1733185958232,0.369189,95882.0,95881.0,0.8018646]
[1733185958944,0.364189,95882.0,95881.0,0.8008646]
[1733185959383,0.365189,95882.0,95881.0,0.8018646]
[1733185959619,0.342189,95882.0,95881.0,0.8008646]
[1733185959824,0.356189,95882.0,95881.0,0.8028646]
[1733185960490,0.1476,95882.0,95881.0,0.8028646]
[1733185960706,0.02,95882.0,95881.0,0.8028646]
[1733185961363,0.02,95882.0,95881.0,1.0114556]